bitfinex-derivatives/quotes_ETHF0:USTF0_20250727
["timestamp","ask_amount","ask_price","bid_price","bid_amount"]
[1753645447637,22.52192,3836.0,3835.9,2.66753]
[1753645447838,22.52192,3836.0,3835.9,2.1463]
[1753645448232,22.52192,3836.0,3835.9,2.66753]
[1753645448429,22.39302,3836.0,3835.9,2.66753]
[1753645448628,1.3029,3836.5,3836.4,0.52116]
[1753645448629,1.06546,3836.5,3836.4,0.52116]
[1753645448833,23.09425813,3836.5,3836.4,2.1463]
[1753645449039,23.22315813,3836.5,3836.4,2.1463]
[1753645449242,23.30365813,3836.5,3836.4,2.66746]
[1753645450841,22.58076,3836.5,3836.4,2.1463]
[1753645451236,1.48526,3836.5,3836.4,2.66746]
[1753645451434,21.2492,3836.5,3836.4,2.66746]
[1753645451635,0.52114,3836.6,3836.5,1.36095]
[1753645451834,21.01,3836.6,3836.5,2.66745]
[1753645452034,3.447,3837.0,3836.9,0.5375]
[1753645452242,4.9822226,3837.0,3836.9,2.66739]
[1753645452431,25.4631226,3837.0,3836.9,2.66739]
[1753645452841,25.7540226,3837.0,3836.9,2.66739]
[1753645453042,25.7540226,3837.0,3836.9,2.1463]
[1753645453240,25.7540226,3837.0,3836.9,2.66739]
[1753645453440,25.7540226,3837.0,3836.9,2.1463]
[1753645453642,25.9932226,3837.0,3836.9,2.1463]
[1753645453841,26.2983226,3837.0,3836.9,2.1463]
[1753645454641,26.4272226,3837.0,3836.9,2.1463]
[1753645454845,26.5077226,3837.0,3836.9,2.1463]
[1753645455143,25.78448,3837.0,3836.9,2.1463]
[1753645456639,25.93398,3837.0,3836.9,0.8667]
[1753645458146,25.57508,3837.0,3836.9,2.1463]
[1753645458540,25.78448,3837.0,3836.9,2.1463]
[1753645461453,25.03078,3837.0,3836.9,2.66739]
[1753645462745,25.76839283,3837.0,3836.9,2.66739]
[1753645463653,24.73988,3837.0,3836.9,2.66739]
[1753645464152,21.53208,3837.0,3836.9,2.66739]
[1753645467753,21.82298,3837.0,3836.9,2.66739]
[1753645470254,22.06218,3837.0,3836.9,2.66739]
[1753645471052,21.82298,3837.0,3836.9,2.66739]
[1753645472154,22.51578,3837.0,3836.9,2.66739]
[1753645474354,22.51578,3837.0,3836.9,1.7065]
[1753645474652,1.14833,3836.6,3836.3,0.4759]
[1753645474853,1.14836,3836.4,3836.3,0.4759]
[1753645475051,1.64346,3836.4,3836.3,0.8431]
[1753645475251,1.64346,3836.4,3836.3,1.083]
[1753645475451,1.64346,3836.4,3836.3,1.4014]
[1753645475653,1.64346,3836.4,3836.3,1.8499]
[1753645475854,1.64346,3836.4,3836.3,0.3672]
[1753645476152,1.6435,3836.1,3836.0,0.8431]
[1753645476357,23.31811283,3836.1,3836.0,0.8431]
[1753645476559,23.31811283,3836.1,3836.0,0.3672]
[1753645476758,23.31811283,3836.1,3836.0,1.083]
[1753645477061,23.17991283,3836.1,3836.0,2.1598]
[1753645477858,23.17991283,3836.1,3836.0,2.68102]
[1753645479655,23.17991283,3836.1,3836.0,2.1598]
[1753645482162,23.17991283,3836.1,3836.0,2.68102]
[1753645482459,23.17991283,3836.1,3836.0,2.1598]
[1753645482764,23.31811283,3836.1,3836.0,1.7113]
[1753645483062,23.31811283,3836.1,3836.0,1.4014]
[1753645483462,23.17991283,3836.1,3836.0,2.1598]
[1753645486655,23.31811283,3836.1,3836.0,1.7113]
[1753645487265,23.17991283,3836.1,3836.0,2.1598]
[1753645493566,23.17991283,3836.1,3836.0,2.68102]
[1753645493767,23.17991283,3836.1,3836.0,2.1598]
[1753645493967,23.17991283,3836.1,3836.0,2.68102]
[1753645496175,0.2913,3836.6,3836.5,2.1598]
[1753645496373,22.42133842,3836.6,3836.5,2.1598]
[1753645496578,22.42133842,3836.6,3836.5,2.68095]
[1753645497274,21.60890842,3836.6,3836.5,2.68095]
[1753645497774,23.05553842,3836.6,3836.5,1.4014]
[1753645497972,23.18103842,3836.6,3836.5,0.3672]
[1753645498176,23.18103842,3836.6,3836.2,0.4586]
[1753645498177,1.57218,3836.3,3836.2,0.4586]
[1753645498364,23.92970125,3836.3,3836.2,0.4586]
[1753645498672,27.13750125,3836.3,3836.2,0.3332]
[1753645499674,27.13750125,3836.3,3836.2,0.7918]
[1753645500677,26.41359283,3836.3,3836.2,0.7918]
[1753645501179,27.13800269,3836.3,3836.2,0.7918]
[1753645502871,27.13800269,3836.3,3836.2,0.3332]
[1753645503472,27.13800269,3836.3,3836.2,0.7918]
[1753645503776,27.01250269,3836.3,3836.2,2.0838]
[1753645503979,25.34738986,3836.3,3836.2,2.60499]
[1753645504176,0.72440986,3836.3,3836.2,2.60499]
[1753645504374,21.62040986,3836.3,3836.2,2.60499]
[1753645504570,20.896,3836.3,3836.2,2.60499]
[1753645505479,20.896,3836.3,3835.9,4.51086]
[1753645505480,3.72893,3836.7,3836.6,2.60493]
[1753645505682,24.62793,3836.7,3836.6,2.60493]
[1753645506080,3.2078,3837.1,3837.0,0.83327]
[1753645506383,26.3797553,3837.1,3837.0,2.0838]
[1753645507686,26.3797553,3837.1,3837.0,2.60488]
[1753645507881,26.0898553,3837.1,3837.0,2.60488]
[1753645508078,3.94541283,3837.1,3837.0,2.60488]
[1753645508282,0.3079,3837.3,3836.6,1.30282]
[1753645508283,0.018,3837.3,3837.2,1.35955]
[1753645508488,20.913,3837.3,3837.2,2.60485]
[1753645509184,0.018,3837.3,3837.2,2.60485]
[1753645509384,20.912,3837.3,3837.2,2.60485]
[1753645510296,22.56415651,3837.3,3837.2,2.0838]
[1753645510498,22.68545651,3837.3,3837.2,0.3332]
[1753645510692,22.68545651,3837.3,3836.9,0.4586]
[1753645510693,1.09238,3837.0,3836.9,0.4586]
[1753645510997,23.07759283,3837.0,3836.9,1.7506]
[1753645511302,23.42409712,3837.0,3836.9,0.7918]
[1753645511498,23.07759283,3837.0,3836.9,2.0838]
[1753645512297,23.19889283,3837.0,3836.9,1.6303]
[1753645512597,23.07759283,3837.0,3836.9,1.6303]
[1753645512791,23.07759283,3837.0,3836.9,2.0838]
[1753645514600,23.07759283,3837.0,3836.9,1.6303]
[1753645515198,23.07759283,3837.0,3836.9,2.0838]
[1753645515403,21.42108,3837.0,3836.9,2.0838]
[1753645515799,20.9,3837.0,3836.9,2.60489]
[1753645518208,20.904,3837.2,3837.1,1.35955]
[1753645519108,20.904,3837.2,3837.1,2.60485]
[1753645519999,21.42505,3837.2,3837.1,2.60485]
[1753645520207,20.904,3837.2,3837.1,2.60485]
[1753645521906,22.33095,3837.2,3837.1,2.0838]
[1753645522403,25.66005,3837.2,3837.1,0.3332]
[1753645522810,22.45225,3837.2,3837.1,0.3332]
[1753645524216,1.09238,3837.0,3836.9,0.4586]
[1753645524511,23.16889283,3837.0,3836.9,0.7918]
[1753645528214,1.37262,3836.7,3836.6,1.2408]
[1753645528416,22.24662,3836.7,3836.6,2.0878]
[1753645529108,20.9249,3836.7,3836.6,2.60893]
[1753645529312,20.874,3836.7,3836.6,2.60893]
[1753645530020,21.39512,3836.7,3836.6,2.60893]
[1753645532216,1.02861283,3837.5,3837.2,2.0878]
[1753645532518,22.37454,3837.3,3837.2,1.6343]
[1753645532821,23.10174593,3837.3,3837.2,1.6343]
[1753645533214,23.10174593,3837.3,3837.2,1.3267]
[1753645533416,23.10174593,3837.3,3837.2,1.021]
[1753645533619,23.10174593,3837.3,3837.2,0.7873]
[1753645534121,23.10174593,3837.3,3837.2,1.021]
[1753645534621,23.10174593,3837.3,3837.2,0.7873]
[1753645535822,23.10174593,3837.3,3836.9,0.4535]
[1753645535823,1.47048,3837.0,3836.9,0.7873]
[1753645536024,23.85029876,3837.0,3836.9,0.7873]
[1753645536412,23.12309283,3837.0,3836.9,0.7873]
[1753645536917,23.12309283,3837.0,3836.9,1.021]
[1753645537121,23.12309283,3837.0,3836.9,1.3267]
[1753645537316,23.01259283,3837.0,3836.9,2.0878]
[1753645537823,23.74094957,3837.0,3836.9,2.0878]
[1753645546128,22.98409283,3837.0,3836.9,2.60889]
[1753645546321,22.17369283,3837.0,3836.9,2.60889]
[1753645546521,20.915,3837.0,3836.9,2.60889]
[1753645547026,21.43608,3837.0,3836.9,2.60889]
[1753645547926,20.915,3837.0,3836.9,2.60889]
[1753645549927,21.40107,3837.1,3837.0,1.36808]
[1753645550125,21.40107,3837.1,3837.0,2.60888]
[1753645552028,20.88,3837.1,3837.0,2.60888]
[1753645554029,21.40107,3837.1,3837.0,2.60888]
[1753645554728,22.19437,3837.1,3837.0,2.60888]
[1753645555330,22.96813482,3837.1,3837.0,2.0878]
[1753645555630,23.07863482,3837.1,3837.0,0.3355]
[1753645555828,1.17959,3836.9,3836.8,0.7873]
[1753645556023,23.07310283,3836.9,3836.8,0.7873]
[1753645556225,23.80126733,3836.9,3836.8,0.7873]
[1753645556426,23.80126733,3836.9,3836.8,1.021]
[1753645556629,23.80126733,3836.9,3836.8,1.4745]
[1753645558128,23.80126733,3836.9,3836.8,1.99561]
[1753645558328,23.80126733,3836.9,3836.8,0.3355]
[1753645558730,23.80126733,3836.9,3836.8,0.7974]
[1753645561134,23.80126733,3836.9,3836.8,1.0207]
[1753645562735,23.69076733,3836.9,3836.8,2.0495]
[1753645565237,23.69076733,3836.9,3836.8,1.5998]
[1753645565425,23.79136733,3836.9,3836.8,1.5998]
[1753645565934,23.79136733,3836.9,3836.8,2.0495]
[1753645566730,23.69076733,3836.9,3836.8,2.0495]
[1753645566935,23.79136733,3836.9,3836.8,0.3355]
[1753645567131,0.835,3836.1,3836.0,4.53141]
[1753645567335,2.42241283,3836.1,3836.0,3.7181]
[1753645567637,1.1636,3835.6,3835.5,4.53148]
[1753645567830,0.54,3835.6,3835.5,5.44308]
[1753645568138,0.74557,3835.6,3835.5,2.23528]
[1753645568531,0.2243,3835.6,3835.5,2.23528]
[1753645568836,1.25888283,3835.7,3835.6,1.32367]
[1753645569029,1.25888283,3835.7,3835.6,1.67127]
[1753645569226,1.54988283,3835.7,3835.6,2.58287]
[1753645569631,1.54988283,3835.7,3835.6,5.79067]
[1753645570626,20.841,3835.8,3835.7,0.52126]
[1753645570825,1.30289,3836.5,3836.1,0.8024]
[1753645570826,0.291,3836.5,3836.1,0.8024]
[1753645571134,3.4988,3837.0,3836.5,2.0616]
[1753645571330,0.52112,3836.8,3836.7,2.5827]
[1753645571530,1.24856337,3836.8,3836.7,2.5827]
[1753645571935,0.72744337,3836.8,3836.7,2.5827]
[1753645572732,20.843,3836.9,3836.8,1.03141]
[1753645572935,0.73761283,3837.2,3837.0,0.52107]
[1753645573235,20.854,3837.1,3837.0,2.58267]
[1753645573431,1.70264,3837.3,3837.2,2.0616]
[1753645573631,24.020665,3837.3,3837.2,2.0616]
[1753645573832,24.020665,3837.3,3836.9,0.52109]
[1753645573833,1.43568,3837.0,3836.9,0.8095]
[1753645574037,22.55268,3837.0,3836.9,0.4619]
[1753645574226,22.55268,3837.0,3836.5,0.4619]
[1753645574227,0.5381,3836.8,3836.5,0.4619]
[1753645574539,1.68473,3836.6,3836.5,0.8095]
[1753645574738,1.68473,3836.6,3836.5,1.6119]
[1753645574932,1.68473,3836.6,3836.5,2.0616]
[1753645575733,1.68473,3836.6,3836.5,1.6119]
[1753645576030,1.68473,3836.6,3834.8,2.82039607]
[1753645576031,1.67312,3836.0,3835.9,1.714]
[1753645576228,22.54912,3836.0,3835.9,1.1016]
[1753645576428,22.54912,3836.0,3835.9,0.4619]
[1753645578535,22.54912,3836.0,3835.9,1.6119]
[1753645578729,22.54912,3836.0,3835.9,2.0616]
[1753645578730,0.52122,3836.0,3835.9,2.0616]
[1753645579042,21.41522,3836.0,3835.9,2.58283]
[1753645579239,21.41522,3836.0,3835.9,2.0616]
[1753645580128,21.93062,3836.0,3835.9,2.0616]
[1753645580445,22.21972,3836.0,3835.9,2.0616]
[1753645581238,22.56712,3836.0,3835.9,1.0328]
[1753645581433,1.64486,3835.7,3835.6,4.8075]
[1753645581637,2.41077283,3835.7,3835.6,5.2694]
[1753645581844,2.09167283,3835.7,3835.6,5.2694]
[1753645582043,2.08077283,3835.7,3835.6,5.2694]
[1753645582942,22.98077283,3835.7,3835.6,5.2694]
[1753645583142,22.99167283,3835.7,3835.6,5.2694]
[1753645583741,23.31077283,3835.7,3835.6,1.6119]
[1753645584138,1.1519,3835.4,3834.9,0.3476]
[1753645584343,1.67328,3834.8,3834.7,1.2521]
[1753645584743,1.67328,3834.8,3834.7,1.714]
[1753645585138,1.67328,3834.8,3834.7,2.23539]
[1753645585546,1.66238,3834.8,3834.7,2.23539]
[1753645586239,1.66238,3834.8,3834.7,2.58299]
[1753645586240,0.5434,3834.8,3834.7,2.58299]
[1753645586439,1.06478,3834.8,3834.7,2.58299]
[1753645588647,0.6833,3834.5,3834.3,1.7326]
[1753645588946,1.81415,3834.3,3834.2,1.68195]
[1753645589144,1.76105,3834.3,3834.2,1.68195]
[1753645589344,1.76105,3834.3,3834.2,1.1605]
[1753645589641,1.76105,3834.3,3834.2,2.0638]
[1753645589848,1.76105,3834.3,3834.2,2.58526]
[1753645590545,1.67615,3834.3,3834.2,2.58526]
[1753645594646,3.96464,3834.4,3834.3,1.10875]
[1753645594845,3.96464,3834.4,3834.3,2.58525]
[1753645595042,4.30434,3834.4,3834.3,2.58525]
[1753645597655,4.59484,3834.4,3834.3,2.58525]
[1753645598950,4.88394,3834.4,3834.3,2.58525]
[1753645600153,5.02194,3834.4,3834.3,2.58525]
[1753645601260,4.96884,3834.4,3834.3,2.58525]
[1753645602861,4.96884,3834.4,3834.3,2.0638]
[1753645603662,4.96884,3834.4,3834.3,2.58525]
[1753645605259,5.02194,3834.4,3834.3,2.58525]
[1753645606159,1.81414,3834.4,3834.3,2.58525]
[1753645606561,5.02194,3834.4,3834.3,2.58525]
[1753645607467,1.81414,3834.4,3834.3,2.58525]
[1753645609363,1.81414,3834.4,3834.3,2.0638]
[1753645609573,5.02194,3834.4,3834.3,2.0638]
[1753645609967,5.02194,3834.4,3834.3,2.58525]
[1753645613868,5.02194,3834.4,3834.3,2.0638]
[1753645614464,0.3397,3834.8,3834.5,0.5214]
[1753645614669,21.57942351,3834.7,3834.6,0.8293]
[1753645614865,22.67591351,3834.7,3834.6,1.2554]
[1753645615066,22.96641351,3834.7,3834.6,2.0638]
[1753645615267,23.25551351,3834.7,3834.6,2.0638]
[1753645615670,23.25551351,3834.7,3834.6,2.58521]
[1753645615869,23.25551351,3834.7,3834.6,2.44200862]
[1753645620170,0.73042351,3834.7,3834.6,2.44200862]
[1753645622370,3.2078,3834.9,3834.8,2.58548]
[1753645622570,0.73082762,3834.9,3834.8,2.58548]
[1753645622772,3.2078,3835.3,3834.8,7.58548]
[1753645622977,3.2078,3835.7,3835.6,1.34357]
[1753645623275,3.2078,3835.7,3835.6,2.58537]
[1753645623474,22.2459834,3836.0,3835.9,1.34353]
[1753645623475,22.4627834,3836.0,3835.9,1.34353]
[1753645623776,21.9924,3836.0,3835.9,2.58533]
[1753645623979,2.6418834,3836.0,3835.9,2.22803]
[1753645624571,2.6418834,3836.0,3835.9,2.58533]
[1753645624771,1.2439,3836.0,3835.9,2.58533]
[1753645627178,1.76512,3836.0,3835.9,2.58533]
[1753645628180,1.76512,3836.0,3835.9,2.0641]
[1753645628977,1.76512,3836.0,3835.9,2.58533]
[1753645629378,1.2056,3836.0,3835.9,2.58533]
[1753645629680,1.72682,3836.0,3835.9,2.58533]
[1753645629877,1.76512,3836.0,3835.9,2.58533]
[1753645630876,1.2439,3836.0,3835.9,2.58533]
[1753645631079,1.76512,3836.0,3835.9,2.58533]
[1753645631375,1.2439,3836.0,3835.9,2.58533]
[1753645631771,1.76512,3836.0,3835.9,2.58533]
[1753645632973,1.2439,3836.0,3835.9,2.58533]
[1753645635180,1.76512,3836.0,3835.9,2.58533]
[1753645635576,1.2439,3836.0,3835.9,2.58533]
[1753645638687,1.76512,3836.0,3835.9,2.58533]
[1753645639485,1.76512,3836.0,3835.9,2.22803]
[1753645639688,1.2439,3836.0,3835.9,2.22803]
[1753645640087,1.2439,3836.0,3835.9,2.58533]
[1753645640785,1.76512,3836.0,3835.9,2.58533]
[1753645641291,1.2439,3836.0,3835.9,2.58533]
[1753645643587,1.76512,3836.0,3835.9,2.58533]
[1753645643785,1.2439,3836.0,3835.9,2.58533]
[1753645643986,1.76512,3836.0,3835.9,2.58533]
[1753645647989,1.76512,3836.0,3835.9,2.0641]
[1753645648381,1.76512,3836.0,3835.9,1.7068]
[1753645648588,1.76512,3836.0,3835.9,1.4693]
[1753645649789,1.76512,3836.0,3835.9,0.4644]
[1753645650397,1.76512,3836.0,3835.9,1.42223]
[1753645650595,1.76512,3836.0,3835.9,1.71673]
[1753645650792,1.76512,3836.0,3835.9,2.02443]
[1753645654391,1.76512,3836.0,3835.9,2.24533]
[1753645656201,1.76512,3836.0,3835.9,2.58283]
[1753645658094,0.3475,3836.0,3835.9,2.58283]
[1753645658396,3.4241,3836.7,3836.6,2.0284]
[1753645658602,3.93278304,3836.7,3836.6,2.54953]
[1753645659701,4.27758304,3836.7,3836.6,2.54953]
[1753645659999,1.57718304,3836.7,3836.6,2.54953]
[1753645660196,2.09830304,3836.7,3836.6,2.54953]
[1753645660705,1.57718304,3836.7,3836.6,2.54953]
[1753645662097,1.28608304,3836.7,3836.6,2.54953]
[1753645662299,21.3981,3836.9,3836.8,1.34421]
[1753645662495,22.12368898,3836.9,3836.8,2.54951]
[1753645662703,21.90738898,3836.9,3836.8,2.54951]
[1753645662901,1.07038898,3836.9,3836.8,2.54951]
[1753645663204,0.3448,3836.9,3836.8,2.54951]
[1753645663403,21.3961,3837.1,3837.0,1.34418]
[1753645663698,22.64235563,3837.1,3837.0,2.54948]
[1753645664000,22.93345563,3837.1,3837.0,2.54948]
[1753645664499,22.20827,3837.1,3837.0,2.54948]
[1753645664704,22.93332165,3837.1,3837.0,2.54948]
[1753645664900,21.3961,3837.1,3837.0,2.54948]
[1753645665100,0.3448,3837.1,3837.0,2.54948]
[1753645665600,0.83014,3837.3,3837.2,2.11825]
[1753645665601,0.018,3837.3,3837.2,2.11825]
[1753645665901,0.74282331,3837.3,3837.2,2.54945]
[1753645666302,1.08762331,3837.3,3837.2,2.54945]
[1753645667605,0.3628,3837.3,3837.2,2.54945]
[1753645670200,0.5791,3837.3,3837.2,2.54945]
[1753645670402,2.50832747,3837.3,3837.2,0.4312]
[1753645670604,1.2308,3836.8,3836.7,2.21202]
[1753645670902,0.8522,3836.8,3836.7,2.54952]
[1753645671304,1.75191,3836.8,3836.7,1.6909]
[1753645671501,4.95971,3836.8,3836.7,0.7257]
[1753645671704,4.95971,3836.8,3836.7,1.47]
[1753645671905,4.4386,3836.8,3836.7,2.21202]
[1753645672303,1.2308,3836.8,3836.7,2.21202]
[1753645672506,1.75191,3836.8,3836.7,2.21202]
[1753645673001,1.2308,3836.8,3836.7,2.21202]
[1753645673305,1.2308,3836.8,3836.7,2.54952]
[1753645674005,1.1991,3836.8,3836.7,2.54952]
[1753645675306,1.2308,3836.8,3836.7,2.21202]
[1753645677305,1.2308,3836.8,3836.7,2.54952]
[1753645677809,0.5611,3836.8,3836.7,2.54952]
[1753645678507,0.8508,3836.8,3836.7,2.54952]
[1753645679010,1.1529,3836.8,3836.7,2.54952]
[1753645679217,1.1376,3836.8,3836.7,2.54952]
[1753645680714,1.1529,3836.8,3836.7,2.54952]
[1753645681515,1.1774,3836.8,3836.7,2.54952]
[1753645682513,1.1376,3836.8,3836.7,2.54952]
[1753645682715,0.7978,3837.2,3837.1,1.33777]
[1753645682919,0.8131,3837.2,3837.1,2.54647]
[1753645683121,0.8376,3837.2,3837.1,2.54647]
[1753645683418,1.70635,3837.2,3837.1,2.21297]
[1753645683818,1.1853,3837.2,3837.1,2.21297]
[1753645685214,1.70635,3837.2,3837.1,2.21297]
[1753645685920,1.1853,3837.2,3837.1,2.21297]
[1753645687721,1.70635,3837.2,3837.1,2.21297]
[1753645688822,1.1853,3837.2,3837.1,2.21297]
[1753645689320,1.70635,3837.2,3837.1,2.21297]
[1753645690624,0.569,3837.2,3837.1,2.54647]
[1753645691227,0.8587,3837.2,3837.1,2.54647]
[1753645694026,1.1853,3837.2,3837.1,2.54647]
[1753645694927,1.17,3837.2,3837.1,2.54647]
[1753645697028,1.1853,3837.2,3837.1,2.54647]
[1753645699233,0.569,3837.2,3837.1,2.54647]
[1753645699927,1.68185,3837.2,3837.1,2.54647]
[1753645700133,1.1853,3837.2,3837.1,2.54647]
[1753645704632,1.17,3837.2,3837.1,2.54647]
[1753645705830,0.3657,3837.3,3837.2,2.54645]
[1753645706530,0.018,3837.3,3837.2,2.54645]
[1753645706738,0.8767,3837.3,3837.2,2.54645]
[1753645707034,1.2033,3837.3,3837.2,1.56045]
[1753645707424,1.72434,3837.3,3837.2,1.98575]
[1753645707936,1.2033,3837.3,3837.2,1.98575]
[1753645708437,0.3657,3837.3,3837.2,2.54025]
[1753645708929,0.018,3837.3,3837.2,2.54025]
[1753645711633,25.0793,3837.9,3837.8,2.52387]
[1753645711830,25.50668791,3837.9,3837.8,2.52387]
[1753645712033,4.46228791,3837.9,3837.8,2.52387]
[1753645712234,4.12568791,3837.9,3837.8,2.52387]
[1753645712632,3.4078,3837.9,3837.8,2.52387]
[1753645713629,3.7444,3837.9,3837.8,2.52387]
[1753645714536,1.3979834,3839.4,3839.3,1.25047]
[1753645714741,1.65882815,3839.4,3839.3,2.52367]
[1753645714933,1.92254818,3839.4,3839.3,1.25047]
[1753645715140,5.13034818,3839.4,3839.3,0.52077]
[1753645715336,1.92254818,3839.4,3839.3,0.52077]
[1753645715733,1.92254818,3839.4,3839.3,0.97247]
[1753645715936,1.92254818,3839.4,3838.9,3.6397]
[1753645716132,1.72428747,3839.1,3839.0,0.97251]
[1753645716338,2.44201562,3839.1,3839.0,0.97251]
[1753645716538,2.77861562,3839.1,3839.0,0.97251]
[1753645716940,2.06088747,3839.1,3839.0,0.97251]
[1753645717940,0.5459,3838.8,3838.7,0.52085]
[1753645718148,1.3224,3838.8,3838.7,0.52085]
[1753645718442,22.1824,3838.8,3838.7,0.52085]
[1753645718645,0.5459,3838.7,3838.6,0.52086]
[1753645718944,1.3224,3838.7,3838.6,0.97256]
[1753645719144,1.3224,3838.7,3838.6,1.25056]
[1753645720650,1.3224,3838.7,3838.6,0.4517]
[1753645720943,1.3224,3838.7,3838.1,3.2078]
[1753645720944,0.9686,3838.2,3838.1,4.18042]
[1753645721146,22.1804,3838.2,3838.1,4.18042]
[1753645721348,22.70132,3838.2,3838.1,4.18042]
[1753645721845,22.70132,3838.2,3838.1,3.72873]
[1753645722952,22.70132,3838.2,3838.1,3.2078]
[1753645723152,22.70132,3838.2,3838.1,3.72873]
[1753645723755,22.70132,3838.2,3838.1,4.18043]
[1753645723954,22.70132,3838.2,3838.1,0.97263]
[1753645724855,22.1804,3838.2,3838.1,0.97263]
[1753645726457,22.1804,3838.2,3838.1,1.25063]
[1753645726950,22.70132,3838.2,3838.1,1.25063]
[1753645727151,0.5459,3837.8,3837.7,0.9434]
[1753645727350,0.5459,3837.8,3837.7,1.46439]
[1753645727351,22.1664,3837.8,3837.7,1.46439]
[1753645727750,22.1664,3837.8,3837.7,1.89629]
[1753645727955,22.1664,3837.8,3837.7,2.18309]
[1753645729654,22.68737,3837.8,3837.7,2.18309]
[1753645729856,22.1664,3837.8,3837.7,2.18309]
[1753645731361,22.68737,3837.8,3837.7,1.6621]
[1753645731561,22.1664,3837.8,3837.7,2.18309]
[1753645731765,22.68737,3837.8,3837.7,1.6621]
[1753645732366,22.1664,3837.8,3837.7,2.18309]
[1753645732663,22.68737,3837.8,3837.7,2.18309]
[1753645732853,22.68737,3837.8,3837.7,1.6621]
[1753645733564,22.68737,3837.8,3837.7,0.7297]
[1753645733963,22.68737,3837.8,3837.7,1.1616]
[1753645734262,22.68737,3837.8,3837.7,1.3753]
[1753645735861,22.68737,3837.8,3837.7,0.7297]
[1753645736066,1.84345,3837.2,3837.1,0.9236]
[1753645736259,22.67045,3837.2,3837.1,0.9236]
[1753645736660,22.67045,3837.2,3837.1,1.3753]
[1753645737160,1.06699,3836.9,3836.8,3.9177]
[1753645737362,22.67049,3836.9,3836.8,4.1512]
[1753645737568,22.67049,3836.9,3836.8,4.8699]
[1753645739268,22.67049,3836.9,3836.8,5.39101]
[1753645739661,22.67049,3836.9,3836.8,4.8699]
[1753645740167,22.67049,3836.9,3836.8,4.1512]
[1753645740369,22.67049,3836.9,3836.8,0.9434]
[1753645740668,22.67049,3836.9,3836.8,1.3943]
[1753645742170,22.67049,3836.9,3836.8,1.91541]
[1753645742362,22.67049,3836.9,3836.8,2.21901]
[1753645742568,22.67049,3836.9,3836.8,1.6979]
[1753645743568,1.84349,3836.9,3836.8,1.6979]
[1753645743872,22.66249,3836.9,3836.8,1.6979]
[1753645746475,22.66249,3836.9,3836.8,2.21901]
[1753645747071,22.66249,3836.9,3836.8,1.6979]
[1753645747570,22.66249,3836.9,3836.8,2.21901]
[1753645747770,22.66249,3836.9,3836.8,2.56201]
[1753645748178,22.66249,3836.9,3836.8,2.0409]
[1753645748878,22.66249,3836.9,3836.8,2.56201]
[1753645749178,22.66249,3836.9,3836.8,2.0409]
[1753645752883,22.66249,3836.9,3836.8,0.7297]
[1753645754580,23.40097747,3836.9,3836.8,0.7297]
[1753645755778,0.5968,3836.5,3836.4,4.4699]
[1753645755979,0.5968,3836.5,3836.4,0.288]
[1753645755980,23.49663747,3836.5,3836.4,0.288]
[1753645756286,1.56179,3836.2,3836.1,0.8112]
[1753645756484,22.75819,3836.2,3836.1,1.7931]
[1753645756784,22.75819,3836.2,3836.1,2.244]
[1753645756986,22.75819,3836.2,3836.1,1.7228]
[1753645757184,22.75819,3836.2,3836.1,2.244]
[1753645757582,22.75819,3836.2,3836.1,2.587]
[1753645760285,22.75819,3836.2,3836.1,2.244]
[1753645760492,1.418,3836.1,3835.9,0.4607]
[1753645760693,22.238,3836.0,3835.9,0.7487]
[1753645760892,22.238,3836.0,3835.9,1.1996]
[1753645761090,22.75922,3836.0,3835.9,2.24402]
[1753645761291,22.75922,3836.0,3835.9,2.58702]
[1753645762590,3.2078,3836.7,3836.6,1.04433]
[1753645762796,26.5305945,3836.7,3836.6,2.0658]
[1753645763193,26.53075516,3836.7,3836.6,2.0658]
[1753645763388,27.40654263,3836.7,3836.6,0.7487]
[1753645763588,1.11796,3836.4,3836.3,0.7389]
[1753645763793,22.76016,3836.4,3836.3,1.1996]
[1753645764098,22.76016,3836.4,3836.3,2.24398]
[1753645764496,22.76016,3836.4,3836.3,2.58698]
[1753645765300,22.76016,3836.4,3836.3,0.9683]
[1753645766498,22.76016,3836.4,3836.3,1.4192]
[1753645767003,22.76016,3836.4,3836.3,2.24398]
[1753645767193,22.76016,3836.4,3836.3,2.58698]
[1753645768100,3.5491,3836.7,3836.6,0.8178]
[1753645768288,26.56827333,3836.7,3836.6,2.0802]
[1753645768494,26.66267333,3836.7,3836.6,0.6944]
[1753645768799,26.66267333,3836.7,3836.6,0.4683]
[1753645768990,26.66267333,3836.7,3836.6,0.7626]
[1753645769192,26.66267333,3836.7,3836.6,2.25953]
[1753645769394,26.66267333,3836.7,3836.6,2.60133]
[1753645769593,23.41857333,3836.7,3836.6,2.60133]
[1753645770496,2.59757333,3836.7,3836.6,2.60133]
[1753645770696,23.41857333,3836.7,3836.6,2.60133]
[1753645772200,2.59757333,3836.7,3836.6,2.60133]
[1753645772396,23.36047333,3836.7,3836.6,2.60133]
[1753645773799,22.65212,3836.7,3836.6,2.60133]
[1753645774298,22.68842,3836.7,3836.6,2.60133]
[1753645774502,22.74652,3836.7,3836.6,2.60133]
[1753645776798,1.92552,3836.7,3836.6,2.60133]
[1753645776998,22.74552,3836.7,3836.6,2.60133]
[1753645779703,22.74552,3836.7,3836.6,2.0802]
[1753645779904,22.74552,3836.7,3836.6,2.60133]
[1753645781400,22.70922,3836.7,3836.6,2.60133]
[1753645781611,22.74172,3836.7,3836.6,2.60133]
[1753645783205,23.48020747,3836.7,3836.6,1.7384]
[1753645783399,23.47920747,3836.7,3836.6,1.7384]